bitfinex/quotes_SOLUSD_20240705
["timestamp","ask_amount","ask_price","bid_price","bid_amount"]
[1720202435175,30.2536,135.14,135.05,20.17]
[1720202435870,22.8538,135.14,135.05,20.17]
[1720202436672,30.2537,135.14,135.05,20.17]
[1720202437467,22.8538,135.14,135.05,20.0]
[1720202437670,7.4008,135.12,135.05,20.0]
[1720202437974,7.4004,135.13,135.05,20.0]
[1720202438362,7.4012,135.12,135.05,20.0]
[1720202438564,18.504,135.11,135.01,0.1]
[1720202438764,7.4041,135.06,135.01,0.1]
[1720202438985,7.4037,135.07,135.01,0.1]
[1720202439587,7.4041,135.06,135.01,0.1]
[1720202439970,7.4037,135.07,135.01,0.1]
[1720202441176,7.5731,135.08,135.01,0.1]
[1720202441402,7.4052,135.04,135.01,0.1]
[1720202441560,7.4033,135.08,135.01,0.1]
[1720202442160,7.5726,135.09,135.01,0.1]
[1720202442361,0.17,135.09,135.01,0.1]
[1720202443260,27.4013,135.11,135.01,0.1]
[1720202443467,22.8538,135.14,135.01,0.1]
[1720202443667,7.4015,135.11,135.01,0.1]
[1720202443870,22.8538,135.14,135.01,0.1]
[1720202444283,18.5013,135.13,135.01,0.1]
[1720202444463,7.4019,135.1,135.01,0.1]
[1720202445188,7.4036,135.07,135.01,0.1]
[1720202445364,18.5042,135.11,135.01,0.1]
[1720202445564,7.404,135.07,135.01,0.1]
[1720202445857,18.5042,135.11,135.01,0.1]
[1720202445858,7.5731,135.08,135.01,0.1]
[1720202446465,0.17,135.08,135.01,0.1]
[1720202446887,7.573,135.08,135.01,0.1]
[1720202447089,0.17,135.08,135.01,0.1]
[1720202447289,7.4047,135.05,135.01,0.1]
[1720202447491,7.4042,135.06,135.01,0.1]
[1720202448100,0.17,135.08,135.01,0.1]
[1720202448272,18.5027,135.12,135.01,0.1]
[1720202448273,0.17,135.09,135.01,0.1]
[1720202448474,0.17,135.1,135.01,0.1]
[1720202448875,7.4044,135.06,135.01,0.1]
[1720202449072,0.17,135.07,135.01,0.1]
[1720202449274,7.4057,135.03,135.01,0.1]
[1720202449580,18.5081,135.08,135.01,0.1]
[1720202449784,20.17,135.07,135.01,0.1]
[1720202450176,7.4057,135.04,135.01,0.1]
[1720202451016,36.7087,135.07,135.01,0.1]
[1720202451017,7.4063,135.02,135.01,0.1]
[1720202451478,18.5105,135.06,135.01,0.1]
[1720202451479,7.4059,135.03,135.01,0.1]
[1720202451903,7.4063,135.02,135.01,0.1]
[1720202452271,7.4059,135.03,135.01,0.1]
[1720202452768,0.17,135.04,135.01,0.1]
[1720202452974,27.4047,135.05,135.01,0.1]
[1720202453182,20.0,135.07,135.01,0.1]
[1720202453183,7.4043,135.06,135.01,0.1]
[1720202453489,27.4047,135.05,135.01,0.1]
[1720202453694,7.4047,135.05,135.01,0.1]
[1720202453890,7.4052,135.04,135.01,0.1]
[1720202454089,38.5096,135.07,135.01,0.1]
[1720202454299,7.4059,135.03,135.01,0.1]
[1720202454792,7.5763,135.02,135.01,0.1]
[1720202454993,27.5763,135.02,135.01,0.1]
[1720202456176,51.1363,135.02,135.01,0.1]
[1720202456573,77.3738,135.02,134.95,0.8693189]
[1720202456784,27.4072,135.01,134.95,0.8693189]
[1720202457181,20.0,135.01,134.95,0.8693189]
[1720202457480,0.17,135.0,134.95,0.8693189]
[1720202457898,7.5778,135.0,134.95,0.8693189]
[1720202458071,7.408,134.99,134.95,0.8693189]
[1720202458271,0.17,135.0,134.95,0.8693189]
[1720202458272,0.17,134.98,134.95,0.8693189]
[1720202458587,7.4086,134.98,134.95,0.8693189]
[1720202458975,7.4079,134.99,134.95,0.8693189]
[1720202459191,0.17,135.0,134.95,0.8693189]
[1720202459582,27.4061,135.03,134.96,16.3499]
[1720202459779,137.0092,135.11,134.96,16.3499]
[1720202459780,6.0685428,135.1,134.97,6.5764]
[1720202459983,7.4012,135.12,134.99,16.3499]
[1720202460176,7.4015,135.11,135.0,20.17]
[1720202460378,7.4009,135.12,135.0,20.17]
[1720202460577,7.4015,135.11,135.0,20.17]
[1720202460790,6.3736,135.13,135.0,20.17]
[1720202460992,18.503,135.12,134.99,16.3499]
[1720202461191,7.403,135.08,134.99,16.3499]
[1720202461992,7.4031,135.08,134.99,16.3499]
[1720202462798,0.17,135.07,134.99,16.3499]
[1720202463109,18.503,135.12,134.99,16.3499]
[1720202463278,20.17,135.11,134.99,16.3499]
[1720202463805,18.5059,135.1,134.99,16.3499]
[1720202464114,7.405,135.05,134.99,16.3499]
[1720202464495,18.5089,135.07,134.99,16.3499]
[1720202464704,18.5089,135.07,134.97,6.4064]
[1720202464705,7.4064,135.02,134.97,6.4064]
[1720202465078,20.17,135.06,134.97,6.4064]
[1720202465079,7.4072,135.01,134.97,6.4064]
[1720202465284,7.5763,135.02,134.97,6.4064]
[1720202465495,7.4069,135.01,134.97,6.4064]
[1720202466716,0.17,135.0,134.97,6.4064]
[1720202467092,0.17,135.0,134.95,0.8693189]
[1720202467296,7.5777,135.0,134.95,0.8693189]
[1720202467596,7.4079,134.99,134.95,0.8693189]
[1720202467994,7.4085,134.98,134.95,0.8693189]
[1720202468512,20.0,135.04,134.95,0.8693189]
[1720202468705,0.17,135.03,134.95,0.8693189]
[1720202468884,7.4059,135.03,134.95,0.8693189]
[1720202469084,20.17,135.02,134.95,0.8693189]
[1720202469585,27.5763,135.02,134.95,0.8693189]
[1720202469785,7.4068,135.01,134.95,0.8693189]
[1720202470386,20.17,135.02,134.95,0.8693189]
[1720202470728,0.17,135.02,134.95,0.8693189]
[1720202471234,20.0,135.03,134.95,0.8693189]
[1720202471517,7.4041,135.06,134.97,6.3335]
[1720202471917,7.4048,135.05,134.97,6.3335]
[1720202472223,7.4044,135.06,134.97,6.3335]
[1720202472523,7.4026,135.09,134.97,6.3335]
[1720202472824,7.4036,135.07,134.97,6.3335]
[1720202473112,7.4041,135.06,134.97,6.3335]
[1720202473402,7.4047,135.05,134.97,6.3335]
[1720202473997,7.4052,135.04,134.97,6.3335]
[1720202474201,18.5081,135.08,134.97,6.3335]
[1720202474410,20.17,135.07,134.97,6.3335]
[1720202474644,7.4053,135.04,134.97,6.3335]
[1720202474908,7.4048,135.05,134.97,6.3335]
[1720202475585,7.4052,135.04,134.97,6.3335]
[1720202475912,7.4058,135.03,134.97,6.3335]
[1720202476215,0.17,135.05,134.97,6.3335]
[1720202476216,7.4054,135.04,134.97,6.3335]
[1720202476431,0.17,135.05,134.97,6.3335]
[1720202476432,7.5747,135.05,134.97,6.3335]
[1720202477529,7.4024,135.09,134.98,16.2443]
[1720202477699,7.4024,135.09,134.99,0.17]
[1720202477897,7.4039,135.07,134.98,16.2443]
[1720202478140,21.43253498,135.1,134.98,16.2443]
[1720202478443,7.4048,135.05,134.98,16.2443]
[1720202478599,7.4052,135.04,134.98,16.2443]
[1720202478799,7.405,135.05,134.98,16.2443]
[1720202479000,2.92763498,135.1,134.98,16.2443]
[1720202479195,7.4041,135.06,134.98,16.2443]
[1720202479716,7.4044,135.06,134.98,16.2443]
[1720202479909,7.4047,135.05,134.98,16.2443]
[1720202480103,7.4052,135.04,134.98,16.2443]
[1720202480311,0.17,135.05,134.98,16.2443]
[1720202480516,20.17,135.06,134.98,16.2443]
[1720202480715,7.4054,135.04,134.98,16.2443]
[1720202481127,7.4048,135.05,134.98,16.2443]
[1720202481331,0.17,135.04,134.98,16.2443]
[1720202481824,7.5752,135.04,134.98,16.2443]
[1720202482231,20.0,135.06,134.98,16.2443]
[1720202482406,20.0,135.09,134.98,16.2443]
[1720202482601,7.4045,135.06,134.98,16.2443]
[1720202483115,20.0,135.09,134.98,16.2443]
[1720202483116,7.4037,135.07,134.98,16.2443]
[1720202483418,20.0,135.06,134.98,16.2443]
[1720202483825,2.92763498,135.1,134.99,6.7671]
[1720202484125,10.32963498,135.1,135.0,15.4115]
[1720202484434,7.4025,135.09,135.01,0.17]
[1720202485117,7.403,135.08,135.0,15.4115]
[1720202486013,7.4043,135.06,135.0,15.4115]
[1720202486610,24.66143498,135.1,135.0,15.4115]
[1720202486818,7.4049,135.05,135.0,15.4115]
[1720202487018,7.4052,135.04,135.0,15.4115]
[1720202487531,7.5762,135.03,135.0,15.4115]
[1720202487729,7.4062,135.03,135.0,15.4115]
[1720202487905,18.6816,135.06,135.0,15.4115]
[1720202487906,7.4063,135.02,135.0,15.4115]
[1720202489709,18.6831,135.04,134.96,21.9685]
[1720202489910,18.6831,135.04,134.95,0.8693189]
[1720202489911,18.5161,135.02,134.95,0.8693189]
[1720202490127,7.4089,134.98,134.95,0.8693189]
[1720202490515,7.4081,134.99,134.95,0.8693189]
[1720202490723,7.4063,135.02,134.95,0.8693189]
[1720202490911,167.84534685,135.1,134.96,6.36]
[1720202490912,24.78095372,135.08,134.96,6.36]
[1720202491223,7.4047,135.05,134.96,6.36]
[1720202491728,71.70688443,135.1,134.97,16.0661]
[1720202491934,7.4033,135.08,134.97,16.0661]
[1720202492140,7.4033,135.08,134.98,6.7804]
[1720202492633,7.4041,135.06,134.98,6.6104]
[1720202493731,6.78917256,135.1,134.98,6.6104]
[1720202494034,6.78917256,135.1,135.01,6.2615]
[1720202494213,6.78917256,135.1,135.02,0.17]
[1720202494544,3.86153758,135.1,135.02,0.17]
[1720202496335,11.26343758,135.1,135.01,6.2615]
[1720202496528,3.86153758,135.1,135.02,0.17]
[1720202496919,7.4008,135.13,135.02,0.17]
[1720202497118,7.4008,135.13,135.02,20.17]
[1720202497615,7.4008,135.12,135.02,20.17]
[1720202498336,7.5714,135.11,135.02,20.17]
[1720202498535,7.4014,135.11,135.02,20.17]
[1720202498743,7.401,135.12,135.02,20.17]
[1720202499036,7.4014,135.11,135.02,20.17]
[1720202499419,7.4009,135.12,135.02,20.17]
[1720202500030,7.4004,135.13,135.02,20.17]
[1720202500232,7.5698,135.14,135.03,16.2114]
[1720202500536,7.5698,135.14,135.05,6.3178]
[1720202501826,7.4003,135.13,135.05,6.3178]
[1720202503242,7.5699,135.14,135.05,6.3178]
[1720202503446,7.3991,135.16,135.05,6.3178]
[1720202503748,20.0,135.15,135.06,15.5809]
[1720202503955,27.3992,135.15,135.06,15.5809]
[1720202504157,7.3992,135.15,135.06,15.5809]
[1720202504947,37.27,135.2,135.06,15.5809]
[1720202505119,7.3987,135.16,135.06,15.5809]
[1720202505831,18.4925,135.19,135.06,15.5809]
[1720202505832,7.4003,135.13,135.06,15.4109]
[1720202506467,7.3999,135.14,135.06,15.4109]
[1720202506885,7.5693,135.15,135.06,15.4109]
[1720202507205,7.3997,135.14,135.06,15.4109]
[1720202508164,7.4003,135.13,135.06,15.4109]
[1720202508576,0.17,135.15,135.06,15.4109]
[1720202508779,7.3993,135.15,135.06,15.4109]
[1720202509808,27.5688,135.16,135.06,15.4109]
[1720202510012,27.5688,135.16,135.07,0.17]
[1720202510013,20.0,135.16,135.07,0.17]
[1720202510885,7.3984,135.17,135.08,6.5977]
[1720202511878,21.41973498,135.2,135.09,15.3547]
[1720202511879,33.17,135.19,135.09,15.3547]
[1720202512081,10.32413498,135.2,135.1,0.17]
[1720202513199,2.92763498,135.2,135.11,21.4663]
[1720202513404,2.92763498,135.2,135.12,0.17]
[1720202513618,7.3958,135.22,135.12,0.17]
[1720202514524,18.489,135.22,135.11,21.4663]
[1720202514755,7.397,135.19,135.11,21.4663]
[1720202515018,7.3972,135.19,135.11,21.4663]
[1720202515520,7.3965,135.2,135.11,21.4663]
[1720202515719,7.3971,135.19,135.11,21.4663]
[1720202515895,7.3976,135.18,135.11,21.4663]
[1720202516305,7.3971,135.19,135.11,21.4663]
[1720202516503,7.3966,135.2,135.11,21.4663]
[1720202516885,27.3961,135.21,135.11,21.4663]
[1720202517291,27.3961,135.21,135.12,0.17]
[1720202518018,20.0,135.21,135.12,0.17]
[1720202518193,10.32313498,135.22,135.12,0.17]
[1720202518904,7.3959,135.21,135.12,0.17]
[1720202519488,2.92763498,135.22,135.11,21.4663]
[1720202519927,20.0,135.24,135.12,0.17]
[1720202520420,7.3955,135.22,135.12,0.17]
[1720202521210,7.3959,135.21,135.12,0.17]
[1720202521520,7.3972,135.19,135.12,0.17]
[1720202521705,7.3972,135.19,135.11,21.4663]
[1720202521905,20.0,135.24,135.11,21.4663]
[1720202521906,7.3955,135.22,135.11,21.4663]
[1720202522102,7.3955,135.22,135.12,0.17]
[1720202525133,7.396,135.21,135.12,0.17]
[1720202525510,18.5798,135.29,135.15,15.4637]
[1720202525711,7.3934,135.26,135.18,15.4637]
[1720202526609,7.3937,135.25,135.18,15.4637]
[1720202527230,21.50743498,135.29,135.18,15.4637]
[1720202527535,7.393,135.27,135.18,15.4637]
[1720202527752,7.3931,135.26,135.18,15.4637]
[1720202528623,7.3927,135.27,135.18,15.4637]
[1720202528826,7.3922,135.28,135.19,0.17]
[1720202529028,3.02763498,135.29,135.19,0.17]
[1720202529029,7.3927,135.27,135.19,0.17]
[1720202529349,7.3926,135.27,135.18,15.4637]
[1720202529548,7.3923,135.28,135.19,0.17]
[1720202529708,3.02763498,135.29,135.19,0.17]
[1720202529911,7.3921,135.28,135.19,0.17]
[1720202530919,10.41933498,135.29,135.19,0.17]
[1720202531120,3.02763498,135.29,135.21,16.5507]
[1720202531328,7.4919,135.29,135.21,16.5507]
[1720202533129,0.1,135.29,135.21,16.5507]
[1720202534445,0.1,135.29,135.23,6.0499]
[1720202534749,0.1,135.29,135.24,15.7045]
[1720202537013,0.1,135.29,135.25,0.17]
[1720202540364,0.1,135.29,135.24,15.7045]
[1720202540768,7.3951,135.23,135.21,16.41]
[1720202541065,33.09,135.25,135.19,6.3473]
[1720202541230,33.09,135.23,135.18,16.41]
[1720202542662,7.3957,135.22,135.18,16.41]
[1720202543249,7.396,135.21,135.18,16.41]
[1720202543447,40.485,135.23,135.18,16.41]
[1720202543650,20.0,135.22,135.18,16.41]
[1720202543848,33.09,135.23,135.18,16.41]
[1720202544055,7.3938,135.25,135.18,16.41]
[1720202544366,30.8102,135.32,135.19,6.066]
[1720202544367,0.1,135.29,135.19,6.066]
[1720202544547,0.1,135.29,135.21,15.4371]
[1720202544869,0.1,135.29,135.22,6.066]
[1720202546378,0.1,135.29,135.23,0.17]
[1720202546563,0.1,135.29,135.24,16.2438]
[1720202548684,7.3932,135.26,135.24,16.2438]
[1720202548886,18.7492,135.29,135.22,6.066]
[1720202549049,7.3922,135.28,135.22,6.066]
[1720202549375,20.0,135.27,135.22,6.066]
[1720202549549,27.3926,135.27,135.22,6.066]
[1720202550463,18.4811,135.28,135.22,6.066]
[1720202550651,20.17,135.27,135.21,16.521]
[1720202551754,7.3937,135.26,135.21,16.521]
[1720202552079,20.0,135.25,135.21,16.521]
[1720202552287,27.5627,135.27,135.21,16.521]
[1720202553281,20.17,135.27,135.21,16.521]
[1720202553591,23.09763498,135.27,135.21,16.521]
[1720202553881,7.3937,135.25,135.21,16.521]
[1720202554379,0.17,135.24,135.21,16.521]
[1720202554779,7.3948,135.23,135.19,6.6102]
[1720202555014,20.17,135.24,135.18,15.6673]
[1720202555191,0.17,135.24,135.15,6.131]
[1720202555507,20.17,135.24,135.15,6.131]
[1720202557111,7.397,135.19,135.15,6.131]
[1720202557500,20.17,135.24,135.15,6.131]
[1720202557808,7.3965,135.2,135.15,6.131]
[1720202558015,7.397,135.19,135.15,6.131]
[1720202558505,7.3965,135.2,135.15,6.131]
[1720202558714,2.92763498,135.23,135.15,6.131]
[1720202559010,7.3953,135.22,135.15,6.131]
[1720202559209,20.0,135.21,135.15,6.131]
[1720202559421,2.92763498,135.23,135.15,6.131]
[1720202559912,2.92763498,135.23,135.16,0.17]
[1720202560126,7.3938,135.25,135.16,0.17]
[1720202560419,8.57830493,135.26,135.16,0.17]
[1720202560591,0.1,135.29,135.17,16.4059]
[1720202560795,0.1,135.29,135.18,6.232]
[1720202561000,7.3922,135.28,135.18,6.232]
[1720202561629,7.4916,135.29,135.19,16.5593]
[1720202561820,0.1,135.29,135.22,16.5593]
[1720202564103,0.1,135.29,135.23,0.17]
[1720202564814,0.1,135.29,135.22,16.5593]
[1720202565008,7.4916,135.29,135.22,16.5593]
[1720202565201,0.1,135.29,135.22,16.5593]
[1720202568916,0.1,135.29,135.23,0.17]
[1720202569309,0.1,135.29,135.22,16.5593]
[1720202569940,0.1,135.29,135.23,0.17]
[1720202571647,0.1,135.29,135.22,16.5593]
[1720202571820,7.4915,135.29,135.22,16.5593]
[1720202572019,0.1,135.29,135.22,16.5593]
[1720202572223,33.2,135.29,135.22,16.5593]
[1720202572445,7.3934,135.26,135.22,16.5593]
[1720202573034,0.17,135.28,135.22,16.5593]
[1720202573035,7.3927,135.27,135.22,16.5593]
[1720202573221,40.5916,135.29,135.22,16.5593]
[1720202573749,0.1,135.29,135.22,16.5593]
[1720202574244,0.1,135.29,135.23,0.17]
[1720202576751,0.1,135.29,135.22,16.5593]
[1720202577048,7.4917,135.29,135.22,16.5593]
[1720202577429,7.3921,135.28,135.22,16.5593]
[1720202578130,7.4917,135.29,135.22,16.5593]
[1720202579927,0.1,135.29,135.22,16.5593]
[1720202580137,20.1,135.29,135.22,16.5593]
[1720202580338,0.1,135.29,135.22,16.5593]
[1720202580660,0.1,135.29,135.23,0.17]
[1720202582150,0.1,135.29,135.23,6.265]
[1720202582351,0.1,135.29,135.24,0.17]
[1720202584031,0.1,135.29,135.25,15.0331]
[1720202584234,0.1,135.29,135.27,6.4211]
[1720202584837,15.0331,135.41,135.28,16.3259]
[1720202585139,15.0331,135.41,135.26,380.8]
[1720202585140,8.2540189,135.42,135.3,22.4331]
[1720202585340,0.8693189,135.42,135.31,0.17]
[1720202585864,8.2542189,135.42,135.31,0.17]
[1720202586034,0.8693189,135.42,135.31,0.17]
[1720202586355,7.3854,135.41,135.31,0.17]
[1720202587365,8.2538189,135.42,135.31,0.17]
[1720202587734,0.8693189,135.42,135.32,22.3272]
[1720202587950,0.8693189,135.42,135.33,20.17]
[1720202589550,0.8693189,135.42,135.34,22.3272]
[1720202589736,0.8693189,135.42,135.35,20.17]
[1720202592349,0.8693189,135.42,135.35,20.0]
[1720202592545,0.8693189,135.42,135.34,22.3272]
[1720202592940,0.8693189,135.42,135.35,20.0]
[1720202593737,0.8693189,135.42,135.36,0.17]
[1720202597174,0.8693189,135.42,135.37,22.4728]
[1720202597456,0.8693189,135.42,135.38,20.17]
[1720202597673,0.04391973,135.45,135.4,15.7484]
[1720202597837,0.04391973,135.45,135.41,20.17]
[1720202598455,0.04391973,135.45,135.42,6.4132]
[1720202598656,0.04391973,135.45,135.43,20.0]
[1720202598860,0.04391973,135.45,135.42,6.4132]
[1720202599244,0.04391973,135.45,135.43,0.17]
[1720202599465,0.04391973,135.45,135.43,20.17]
[1720202601972,0.1,135.49,135.44,22.9314]
[1720202602168,0.1,135.49,135.45,20.17]
[1720202602578,0.8693189,135.55,135.46,15.2023]
[1720202602767,0.8693189,135.55,135.47,20.17]
[1720202603164,0.8693189,135.55,135.48,6.0803]
[1720202603473,0.8693189,135.55,135.49,21.35380317]
[1720202603778,0.1,135.59,135.51,6.0803]
[1720202603982,0.1,135.59,135.52,20.17]
[1720202606491,0.1,135.59,135.51,6.0803]
[1720202606701,0.1,135.59,135.5,16.3428]
[1720202606702,7.3777,135.55,135.5,16.3428]
[1720202606998,7.3777,135.55,135.48,6.0704]
[1720202607285,7.3769,135.56,135.48,6.0704]
[1720202608170,7.3773,135.55,135.48,6.0704]
[1720202609881,7.3801,135.5,135.44,6.1337]
[1720202610073,7.3796,135.51,135.44,6.1337]
[1720202610271,20.0,135.5,135.44,6.1337]
[1720202610480,27.3801,135.5,135.44,6.1337]
[1720202611490,20.0,135.5,135.44,6.1337]
[1720202611676,20.0,135.5,135.41,15.7561]
[1720202611677,0.17,135.49,135.41,15.7561]
[1720202611863,7.3821,135.47,135.41,15.7561]
[1720202612491,7.3839,135.43,135.35,15.8899]
[1720202612688,7.3834,135.44,135.35,15.8899]
[1720202613193,20.0,135.46,135.35,15.8899]
[1720202613372,0.17,135.45,135.35,15.8899]
[1720202613984,0.17,135.46,135.35,15.8899]
[1720202614373,7.3828,135.45,135.35,15.8899]
[1720202614678,20.0,135.44,135.35,15.8899]
[1720202615084,8.57977937,135.49,135.35,15.8899]
[1720202615286,0.17,135.48,135.35,15.8899]
[1720202615788,7.5512,135.48,135.36,20.17]
[1720202616290,22.15627047,135.51,135.37,6.6656]
[1720202616499,43.5817,135.52,135.38,20.17]
[1720202616785,8.57977937,135.53,135.4,6.0437]
[1720202616992,21.01545335,135.57,135.41,20.17]
[1720202617174,7.3786,135.53,135.41,20.17]
[1720202617369,8.57977937,135.56,135.41,20.17]
[1720202617675,8.57977937,135.56,135.41,120.17]
[1720202617881,8.57977937,135.56,135.43,100.0]
[1720202618188,7.4753,135.59,135.46,15.4009]
[1720202618393,0.1,135.59,135.47,20.17]
[1720202618576,7.3757,135.58,135.47,20.17]
[1720202618763,7.3765,135.57,135.47,20.17]
[1720202619192,7.3757,135.58,135.47,20.17]
[1720202619694,0.1,135.59,135.47,120.17]
[1720202620687,0.1,135.59,135.48,6.1818]
[1720202620899,0.1,135.59,135.49,20.17]
[1720202621871,0.1,135.59,135.49,120.17]
[1720202622072,7.3779,135.54,135.46,22.0434]
[1720202622387,7.378,135.54,135.46,22.0434]
[1720202622569,46.34037059,135.59,135.46,22.0434]
[1720202622770,18.4437,135.55,135.46,22.0434]
[1720202623076,20.0,135.54,135.46,22.0434]
[1720202623283,7.379,135.52,135.46,22.0434]
[1720202623788,20.0,135.54,135.46,22.0434]
[1720202624173,7.378,135.54,135.46,22.0434]
[1720202624373,20.0,135.53,135.46,22.0434]
[1720202624789,7.3774,135.55,135.46,22.0434]
[1720202624790,20.0,135.54,135.46,22.0434]
[1720202624992,20.0,135.54,135.47,0.17]
[1720202625295,20.0,135.55,135.47,0.17]
[1720202625791,7.3762,135.57,135.47,0.17]
[1720202625995,7.3762,135.57,135.47,20.17]
[1720202626171,7.3768,135.56,135.47,20.17]
[1720202626781,7.3774,135.55,135.47,20.17]
[1720202627285,7.377,135.56,135.47,20.17]
[1720202627486,7.3763,135.57,135.47,20.17]
[1720202628076,7.3768,135.56,135.47,20.17]
[1720202629699,7.3764,135.57,135.47,20.17]
[1720202630305,7.3768,135.56,135.47,20.17]
[1720202630691,7.3763,135.57,135.47,20.17]
[1720202631980,7.3759,135.58,135.47,20.17]
[1720202632188,7.3763,135.57,135.47,20.17]
[1720202632795,7.3759,135.58,135.47,20.17]
[1720202632996,7.3763,135.57,135.47,20.17]
[1720202633190,7.3769,135.56,135.47,20.17]
[1720202633576,7.3764,135.57,135.47,20.17]
[1720202634180,7.3764,135.57,135.48,6.5636]
[1720202634411,37.0489,135.58,135.48,6.5636]
[1720202634586,7.3791,135.52,135.48,6.5636]
[1720202634994,7.3785,135.53,135.48,6.5636]
[1720202636108,7.3797,135.51,135.48,6.5636]
[1720202636309,7.3791,135.52,135.48,6.5636]
[1720202636481,7.3786,135.53,135.48,6.5636]
[1720202636896,33.70257059,135.58,135.48,6.5636]
[1720202637083,20.0,135.57,135.48,6.5636]
[1720202637495,7.3772,135.56,135.48,6.5636]
[1720202637809,7.3783,135.54,135.48,6.5636]
[1720202637983,27.5478,135.55,135.48,6.5636]
[1720202638187,7.378,135.54,135.48,6.5636]
[1720202638401,27.5475,135.55,135.48,6.5636]
[1720202638590,20.0,135.55,135.48,6.5636]
[1720202638785,20.0,135.57,135.48,6.5636]
[1720202638992,7.3772,135.56,135.48,6.5636]
[1720202639711,7.3763,135.57,135.48,6.5636]
[1720202639913,9.00037059,135.58,135.48,6.5636]
[1720202640298,20.0,135.57,135.48,6.5636]
[1720202640688,9.00037059,135.58,135.5,15.0163]
[1720202640885,0.1,135.59,135.52,6.0066]
[1720202641191,0.1,135.59,135.53,20.0]
[1720202642308,7.56471824,135.6,135.54,22.7358]
[1720202642614,19.3945189,135.69,135.58,6.4819]
[1720202642805,0.9693189,135.69,135.58,6.4819]
[1720202643107,7.3736,135.62,135.58,6.4819]
[1720202643410,37.24,135.64,135.53,6.4908]
[1720202643620,7.3764,135.57,135.53,6.4908]
[1720202643786,7.3755,135.59,135.53,6.4908]
[1720202644321,55.6718,135.64,135.53,6.4908]
[1720202644525,18.4349,135.62,135.53,6.4908]
[1720202644814,7.3763,135.57,135.53,6.4908]
[1720202645123,20.17,135.61,135.53,6.4908]
[1720202645124,7.3758,135.58,135.53,6.4908]
[1720202645531,7.3763,135.57,135.53,6.4908]
[1720202645694,7.3763,135.57,135.41,100.0]
[1720202645891,57.24,135.61,135.49,6.152]
[1720202645892,7.5468,135.56,135.49,6.152]
[1720202646718,0.17,135.56,135.49,6.152]
[1720202647088,0.17,135.56,135.45,6.1153]
[1720202647523,7.3806,135.49,135.45,6.1153]
[1720202647697,37.24,135.53,135.41,6.5469]
[1720202647902,20.17,135.52,135.41,6.5469]
[1720202648108,7.3807,135.49,135.41,6.5469]
[1720202648409,20.17,135.52,135.41,6.5469]
[1720202648410,0.17,135.48,135.41,6.5469]
[1720202648595,7.3812,135.48,135.41,6.5469]
[1720202648796,0.17,135.5,135.41,6.5469]
[1720202648797,20.0,135.47,135.41,6.5469]
[1720202649322,7.3817,135.47,135.41,6.5469]
[1720202649692,27.3812,135.48,135.41,6.5469]
[1720202649923,20.0,135.48,135.41,6.5469]
[1720202650134,27.5502,135.5,135.41,6.5469]